[Event "4. Memorial Svat.Hastika OPEN"]
[Site "Jesenik, Czech Republic"]
[Date "2022.09.03"]
[Round "9.2"]
[White "Bares, Jachym"]
[Black "Banasik, Krzysztof"]
[Result "0-1"]
[TimeControl "720+3"]
[WhiteFideId "345075"]
[BlackFideId "1125222"]
[WhiteElo "1978"]
[BlackElo "2166"]

1. e4 {[%clk 00:12:04]} {[%emt 00:00:02]} d6 {[%clk 00:12:03]} {[%emt
00:00:04]} 2. d4 {[%clk 00:12:06]} Nf6 {[%clk 00:12:04]} 3. Nc3 {[%clk
00:12:08]} {[%emt 00:00:01]} Nbd7 {[%clk 00:12:06]} 4. Bd3 {[%clk 00:12:08]}
{[%emt 00:00:03]} e5 {[%clk 00:12:07]} {[%emt 00:00:03]} 5. Nf3 {[%clk
00:12:02]} {[%emt 00:00:09]} Be7 {[%clk 00:12:06]} {[%emt 00:00:04]} 6. h3
{[%clk 00:11:46]} {[%emt 00:00:20]} c6 {[%clk 00:11:54]} {[%emt 00:00:14]} 7.
a4 {[%clk 00:11:42]} {[%emt 00:00:06]} O-O {[%clk 00:11:49]} {[%emt 00:00:09]}
8. Be3 {[%clk 00:11:42]} {[%emt 00:00:04]} Re8 {[%clk 00:11:45]} {[%emt
00:00:06]} 9. O-O {[%clk 00:11:43]} {[%emt 00:00:02]} Bf8 {[%clk 00:11:43]}
{[%emt 00:00:05]} 10. dxe5 {[%clk 00:10:46]} {[%emt 00:00:59]} Nxe5 {[%clk
00:11:35]} {[%emt 00:00:11]} 11. Nxe5 {[%clk 00:10:46]} {[%emt 00:00:03]} dxe5
{[%clk 00:11:35]} {[%emt 00:00:03]} 12. Bc4 {[%clk 00:10:41]} {[%emt 00:00:08]}
Qc7 {[%clk 00:10:40]} {[%emt 00:00:58]} 13. Qe2 {[%clk 00:10:31]} {[%emt
00:00:13]} a5 {[%clk 00:09:13]} {[%emt 00:01:30]} 14. Rfd1 {[%clk 00:10:22]}
{[%emt 00:00:11]} Bb4 {[%clk 00:09:06]} {[%emt 00:00:11]} 15. f3 {[%clk
00:10:14]} {[%emt 00:00:11]} Nh5 {[%clk 00:08:54]} {[%emt 00:00:15]} 16. Qf2
{[%clk 00:10:13]} {[%emt 00:00:05]} Nf4 {[%clk 00:08:40]} {[%emt 00:00:17]} 17.
Ne2 {[%clk 00:09:47]} {[%emt 00:00:28]} Be6 {[%clk 00:07:48]} {[%emt 00:00:55]}
18. Bxe6 {[%clk 00:09:34]} {[%emt 00:00:16]} Nxe6 {[%clk 00:07:43]} {[%emt
00:00:07]} 19. c3 {[%clk 00:09:36]} {[%emt 00:00:02]} Bf8 {[%clk 00:07:26]}
{[%emt 00:00:20]} 20. Bb6 {[%clk 00:09:31]} {[%emt 00:00:08]} Qc8 {[%clk
00:07:27]} {[%emt 00:00:01]} 21. Be3 {[%clk 00:09:02]} {[%emt 00:00:32]} Rd8
{[%clk 00:06:45]} {[%emt 00:00:45]} 22. Ng3 {[%clk 00:07:49]} {[%emt 00:01:16]}
g6 {[%clk 00:06:39]} {[%emt 00:00:09]} 23. h4 {[%clk 00:07:38]} {[%emt
00:00:14]} h5 {[%clk 00:06:39]} {[%emt 00:00:03]} 24. Qc2 {[%clk 00:06:53]}
{[%emt 00:00:48]} Bc5 {[%clk 00:06:24]} {[%emt 00:00:19]} 25. Bxc5 {[%clk
00:06:48]} {[%emt 00:00:08]} Nxc5 {[%clk 00:06:26]} {[%emt 00:00:02]} 26. Nf1
{[%clk 00:05:59]} {[%emt 00:00:52]} Qc7 {[%clk 00:06:21]} {[%emt 00:00:07]} 27.
Ne3 {[%clk 00:05:59]} {[%emt 00:00:04]} Ne6 {[%clk 00:06:15]} {[%emt 00:00:09]}
28. g3 {[%clk 00:05:32]} {[%emt 00:00:30]} Qb6 {[%clk 00:05:59]} {[%emt
00:00:19]} 29. Qe2 {[%clk 00:05:08]} {[%emt 00:00:27]} Nf4 {[%clk 00:05:09]}
{[%emt 00:00:53]} 30. gxf4 {[%clk 00:05:09]} {[%emt 00:00:02]} exf4 {[%clk
00:05:09]} {[%emt 00:00:03]} 31. Kf2 {[%clk 00:05:11]} Kf8 {[%clk 00:04:56]}
{[%emt 00:00:17]} 32. Rab1 {[%clk 00:01:18]} {[%emt 00:03:55]} Kg8 {[%clk
00:04:17]} {[%emt 00:00:42]} 33. Re1 {[%clk 00:00:50]} {[%emt 00:00:31]} Rd7
{[%clk 00:03:52]} {[%emt 00:00:29]} 34. Kf1 {[%clk 00:00:41]} {[%emt 00:00:11]}
fxe3 {[%clk 00:03:45]} {[%emt 00:00:10]} 35. Qxe3 {[%clk 00:00:43]} Qb3 {[%clk
00:03:42]} {[%emt 00:00:06]} 36. Re2 {[%clk 00:00:08]} {[%emt 00:00:38]} Qxa4
{[%clk 00:03:24]} {[%emt 00:00:21]} 37. Kf2 {[%clk 00:00:09]} {[%emt 00:00:02]}
Qc4 {[%clk 00:03:17]} {[%emt 00:00:09]} 38. Rg1 {[%clk 00:00:11]} {[%emt
00:00:01]} Re8 {[%clk 00:02:55]} {[%emt 00:00:26]} 39. Qh6 {[%clk 00:00:12]}
Qc5+ {[%clk 00:02:49]} {[%emt 00:00:09]} 40. Kg2 {[%clk 00:00:15]} Red8 {[%clk
00:02:04]} {[%emt 00:00:47]} 41. Kh1 {[%clk 00:00:17]} Rd1 {[%clk 00:01:37]}
{[%emt 00:00:30]} 42. Reg2 {[%clk 00:00:19]} Rxg1+ {[%clk 00:01:30]} {[%emt
00:00:09]} 43. Rxg1 {[%clk 00:00:21]} {[%emt 00:00:01]} Qe5 {[%clk 00:01:25]}
{[%emt 00:00:07]} 44. Qe3 {[%clk 00:00:07]} {[%emt 00:00:18]} a4 {[%clk
00:01:03]} {[%emt 00:00:25]} 45. Qb6 {[%clk 00:00:07]} {[%emt 00:00:03]} Qf6
{[%clk 00:00:42]} {[%emt 00:00:23]} 46. Qf2 {[%clk 00:00:08]} {[%emt 00:00:03]}
Qf4 {[%clk 00:00:43]} {[%emt 00:00:02]} 47. Re1 {[%clk 00:00:07]} {[%emt
00:00:04]} Rd3 {[%clk 00:00:36]} {[%emt 00:00:10]} 48. Kg2 {[%clk 00:00:09]}
{[%emt 00:00:02]} Rd2 {[%clk 00:00:33]} {[%emt 00:00:05]} 49. Re2 {[%clk
00:00:11]} {[%emt 00:00:02]} Rxe2 {[%clk 00:00:34]} {[%emt 00:00:01]} 50. Qxe2
{[%clk 00:00:14]} Qxh4 {[%clk 00:00:36]} 51. Qc4 {[%clk 00:00:12]} {[%emt
00:00:05]} Qg5+ {[%clk 00:00:37]} {[%emt 00:00:02]} 52. Kh3 {[%clk 00:00:11]}
{[%emt 00:00:04]} h4 {[%clk 00:00:38]} {[%emt 00:00:01]} 53. Kh2 {[%clk
00:00:11]} {[%emt 00:00:04]} Qg3+ {[%clk 00:00:39]} {[%emt 00:00:02]} 54. Kh1
{[%clk 00:00:14]} {[%emt 00:00:01]} Qxf3+ {[%clk 00:00:40]} 0-1

[Event "4. Memorial Svat.Hastika OPEN"]
[Site "Jesenik, Czech Republic"]
[Date "2022.09.03"]
[Round "9.3"]
[White "Gawlas, Roman"]
[Black "Skovron, Josef"]
[Result "1-0"]
[TimeControl "720+3"]
[WhiteFideId "351652"]
[BlackFideId "329886"]
[WhiteElo "1906"]
[BlackElo "1821"]

1. d4 {[%clk 00:12:04]} {[%emt 00:00:02]} f5 {[%clk 00:12:05]} {[%emt
00:00:01]} 2. Nc3 {[%clk 00:12:06]} Nf6 {[%clk 00:12:05]} {[%emt 00:00:03]} 3.
Bg5 {[%clk 00:12:08]} {[%emt 00:00:01]} e6 {[%clk 00:11:44]} {[%emt 00:00:25]}
4. e4 {[%clk 00:12:09]} {[%emt 00:00:02]} fxe4 {[%clk 00:11:41]} {[%emt
00:00:06]} 5. Nxe4 {[%clk 00:12:11]} {[%emt 00:00:02]} Be7 {[%clk 00:11:43]} 6.
Bxf6 {[%clk 00:12:12]} {[%emt 00:00:02]} Bxf6 {[%clk 00:11:44]} {[%emt
00:00:01]} 7. Nf3 {[%clk 00:12:08]} {[%emt 00:00:07]} O-O {[%clk 00:11:38]}
{[%emt 00:00:09]} 8. Bd3 {[%clk 00:12:09]} {[%emt 00:00:02]} Nc6 {[%clk
00:11:24]} {[%emt 00:00:18]} 9. c3 {[%clk 00:12:08]} {[%emt 00:00:04]} e5
{[%clk 00:11:12]} {[%emt 00:00:15]} 10. d5 {[%clk 00:08:35]} {[%emt 00:03:36]}
Nb8 {[%clk 00:11:02]} {[%emt 00:00:12]} 11. d6 {[%clk 00:07:55]} {[%emt
00:00:43]} c6 {[%clk 00:08:21]} {[%emt 00:02:44]} 12. Qc2 {[%clk 00:07:36]}
{[%emt 00:00:23]} h6 {[%clk 00:08:11]} {[%emt 00:00:13]} 13. O-O-O {[%clk
00:06:45]} {[%emt 00:00:53]} a5 {[%clk 00:07:52]} {[%emt 00:00:22]} 14. g4
{[%clk 00:06:46]} {[%emt 00:00:02]} b5 {[%clk 00:07:18]} {[%emt 00:00:37]} 15.
g5 {[%clk 00:06:24]} {[%emt 00:00:25]} hxg5 {[%clk 00:07:15]} {[%emt 00:00:06]}
16. Rdg1 {[%clk 00:06:24]} {[%emt 00:00:03]} Ba6 {[%clk 00:06:46]} {[%emt
00:00:31]} 17. Nfxg5 {[%clk 00:05:43]} {[%emt 00:00:44]} b4 {[%clk 00:06:10]}
{[%emt 00:00:40]} 18. Bxa6 {[%clk 00:04:51]} {[%emt 00:00:54]} Nxa6 {[%clk
00:06:07]} {[%emt 00:00:06]} 19. Nxf6+ {[%clk 00:04:46]} {[%emt 00:00:08]} Rxf6
{[%clk 00:05:29]} {[%emt 00:00:41]} 20. Qh7+ {[%clk 00:04:46]} {[%emt
00:00:04]} Kf8 {[%emt 00:00:05]} 21. Qh8# {[%clk 00:04:46]} {[%emt 00:00:01]}
1-0

[Event "4. Memorial Svat.Hastika OPEN"]
[Site "Jesenik, Czech Republic"]
[Date "2022.09.03"]
[Round "9.5"]
[White "Zrubek, Dan"]
[Black "Taborsky, Bedrich"]
[Result "1-0"]
[TimeControl "720+3"]
[WhiteFideId "23718714"]
[BlackFideId "378151"]
[WhiteElo "1504"]
[BlackElo "1793"]

1. e4 {[%clk 00:12:04]} {[%emt 00:00:02]} g6 {[%clk 00:12:04]} {[%emt
00:00:03]} 2. d4 {[%clk 00:12:05]} {[%emt 00:00:02]} Bg7 {[%clk 00:12:06]} 3.
Nc3 {[%clk 00:12:01]} {[%emt 00:00:06]} c5 {[%clk 00:12:07]} {[%emt 00:00:03]}
4. Nf3 {[%clk 00:12:01]} {[%emt 00:00:03]} cxd4 {[%clk 00:12:08]} {[%emt
00:00:02]} 5. Nxd4 {[%clk 00:12:02]} {[%emt 00:00:01]} a6 {[%clk 00:12:08]}
{[%emt 00:00:04]} 6. Be3 {[%clk 00:11:52]} {[%emt 00:00:13]} e6 {[%clk
00:12:07]} {[%emt 00:00:04]} 7. Be2 {[%clk 00:11:51]} {[%emt 00:00:04]} Ne7
{[%clk 00:12:06]} {[%emt 00:00:03]} 8. O-O {[%clk 00:11:45]} {[%emt 00:00:09]}
Nbc6 {[%clk 00:12:08]} {[%emt 00:00:02]} 9. Qd2 {[%clk 00:11:40]} {[%emt
00:00:08]} O-O {[%clk 00:12:09]} {[%emt 00:00:02]} 10. Kh1 {[%clk 00:11:38]}
{[%emt 00:00:05]} f5 {[%clk 00:11:55]} {[%emt 00:00:16]} 11. exf5 {[%clk
00:09:39]} {[%emt 00:02:03]} Nxf5 {[%clk 00:11:52]} {[%emt 00:00:05]} 12. Nxf5
{[%clk 00:09:32]} {[%emt 00:00:11]} Rxf5 {[%clk 00:11:54]} {[%emt 00:00:01]} 13.
Rad1 {[%clk 00:09:21]} {[%emt 00:00:13]} d5 {[%clk 00:11:56]} {[%emt 00:00:01]}
14. Bg4 {[%clk 00:08:59]} {[%emt 00:00:24]} Rf7 {[%clk 00:11:47]} {[%emt
00:00:12]} 15. Ne2 {[%clk 00:08:41]} {[%emt 00:00:21]} Bd7 {[%clk 00:11:39]}
{[%emt 00:00:10]} 16. c3 {[%clk 00:06:45]} {[%emt 00:02:00]} Qe7 {[%clk
00:11:39]} {[%emt 00:00:02]} 17. Rfe1 {[%clk 00:06:35]} {[%emt 00:00:14]} Ne5
{[%clk 00:11:39]} {[%emt 00:00:03]} 18. Bh3 {[%clk 00:05:54]} {[%emt 00:00:44]}
Nc4 {[%clk 00:11:40]} {[%emt 00:00:02]} 19. Qc1 {[%clk 00:05:53]} {[%emt
00:00:04]} Nxe3 {[%clk 00:11:33]} {[%emt 00:00:10]} 20. Qxe3 {[%clk 00:05:53]}
{[%emt 00:00:03]} Raf8 {[%clk 00:11:34]} {[%emt 00:00:02]} 21. f3 {[%clk
00:05:26]} {[%emt 00:00:31]} Rf6 {[%clk 00:11:22]} {[%emt 00:00:15]} 22. Rxd5
{[%clk 00:04:42]} {[%emt 00:00:47]} Qf7 {[%clk 00:11:09]} {[%emt 00:00:15]} 23.
Rd6 {[%clk 00:03:51]} {[%emt 00:00:51]} Qe7 {[%clk 00:10:47]} {[%emt 00:00:27]}
24. Red1 {[%clk 00:01:44]} {[%emt 00:02:11]} Bc8 {[%clk 00:10:49]} {[%emt
00:00:01]} 25. Nc1 {[%clk 00:00:44]} {[%emt 00:01:03]} h6 {[%clk 00:10:16]}
{[%emt 00:00:35]} 26. Nb3 {[%clk 00:00:29]} {[%emt 00:00:18]} Kh7 {[%clk
00:09:44]} {[%emt 00:00:36]} 27. R6d2 {[%clk 00:00:17]} {[%emt 00:00:15]} h5
{[%clk 00:09:42]} {[%emt 00:00:04]} 28. Re1 {[%clk 00:00:11]} {[%emt 00:00:10]}
Bh6 {[%clk 00:09:43]} {[%emt 00:00:02]} 29. Qe2 {[%clk 00:00:09]} {[%emt
00:00:05]} Bxd2 {[%clk 00:09:31]} {[%emt 00:00:14]} 30. Nxd2 {[%clk 00:00:11]}
{[%emt 00:00:02]} Re8 {[%clk 00:09:14]} {[%emt 00:00:19]} 31. Ne4 {[%clk
00:00:08]} {[%emt 00:00:07]} Rf4 {[%clk 00:09:11]} {[%emt 00:00:05]} 32. Qe3
{[%clk 00:00:08]} {[%emt 00:00:04]} Qc7 {[%clk 00:08:48]} {[%emt 00:00:25]} 33.
Ng5+ {[%clk 00:00:07]} {[%emt 00:00:06]} Kh6 {[%clk 00:08:43]} {[%emt
00:00:06]} 34. g3 {[%clk 00:00:05]} {[%emt 00:00:05]} Kxg5 {[%clk 00:08:39]}
{[%emt 00:00:07]} 35. Qxf4+ {[%clk 00:00:06]} {[%emt 00:00:02]} Qxf4 {[%clk
00:08:41]} {[%emt 00:00:02]} 36. gxf4+ {[%clk 00:00:08]} Kxf4 {[%clk 00:08:42]}
{[%emt 00:00:01]} 37. Kg2 {[%clk 00:00:11]} e5 {[%clk 00:08:34]} {[%emt
00:00:11]} 38. Bxc8 {[%clk 00:00:12]} {[%emt 00:00:01]} Rxc8 {[%clk 00:08:35]}
{[%emt 00:00:02]} 39. Re4+ {[%clk 00:00:15]} Kf5 {[%clk 00:08:37]} {[%emt
00:00:01]} 40. Re2 {[%clk 00:00:08]} {[%emt 00:00:10]} Rc4 {[%clk 00:08:34]}
{[%emt 00:00:05]} 41. Rd2 {[%clk 00:00:05]} {[%emt 00:00:07]} Rc6 {[%clk
00:08:34]} {[%emt 00:00:02]} 42. Rd7 {[%clk 00:00:06]} {[%emt 00:00:02]} b6
{[%clk 00:08:36]} {[%emt 00:00:01]} 43. Rf7+ {[%clk 00:00:07]} {[%emt
00:00:02]} Kg5 {[%clk 00:08:36]} {[%emt 00:00:03]} 44. Ra7 {[%clk 00:00:09]} a5
{[%clk 00:08:38]} {[%emt 00:00:01]} 45. Re7 {[%clk 00:00:11]} {[%emt 00:00:01]}
Kf6 {[%clk 00:08:39]} {[%emt 00:00:03]} 46. Rd7 {[%clk 00:00:13]} {[%emt
00:00:01]} Ke6 {[%clk 00:08:35]} {[%emt 00:00:06]} 47. Rd2 {[%clk 00:00:15]}
{[%emt 00:00:02]} Rd6 {[%clk 00:08:35]} {[%emt 00:00:03]} 48. Rxd6+ {[%clk
00:00:07]} {[%emt 00:00:11]} Kxd6 {[%clk 00:08:37]} 49. Kf2 {[%clk 00:00:09]}
Ke6 {[%clk 00:08:39]} 50. Ke3 {[%clk 00:00:12]} Kf5 {[%clk 00:08:41]} 51. a3
{[%clk 00:00:09]} {[%emt 00:00:06]} g5 {[%clk 00:08:41]} {[%emt 00:00:03]} 52.
h3 {[%clk 00:00:10]} {[%emt 00:00:01]} Ke6 {[%clk 00:08:39]} {[%emt 00:00:04]}
53. Ke4 {[%clk 00:00:12]} {[%emt 00:00:03]} b5 {[%clk 00:08:38]} {[%emt
00:00:04]} 54. b3 {[%clk 00:00:12]} {[%emt 00:00:03]} g4 {[%clk 00:08:24]}
{[%emt 00:00:17]} 55. fxg4 {[%clk 00:00:13]} {[%emt 00:00:02]} hxg4 {[%clk
00:08:12]} 56. hxg4 {[%clk 00:00:15]} {[%emt 00:00:15]} Kf6 {[%clk 00:08:10]}
{[%emt 00:00:04]} 57. c4 {[%clk 00:00:16]} {[%emt 00:00:02]} bxc4 {[%clk
00:08:11]} {[%emt 00:00:02]} 58. bxc4 {[%clk 00:00:18]} Kg5 {[%clk 00:08:13]}
{[%emt 00:00:01]} 59. Kxe5 {[%clk 00:00:20]} {[%emt 00:00:01]} Kxg4 {[%emt
00:00:02]} 60. c5 {[%clk 00:00:22]} 1-0

[Event "4. Memorial Svat.Hastika OPEN"]
[Site "Jesenik, Czech Republic"]
[Date "2022.09.03"]
[Round "9.6"]
[White "Cimburek, Jan"]
[Black "Cechacek, Miroslav"]
[Result "1-0"]
[TimeControl "720+3"]
[WhiteFideId "390283"]
[BlackFideId "377090"]
[WhiteElo "1591"]
[BlackElo "1541"]

1. Nf3 {[%clk 00:12:03]} {[%emt 00:00:03]} Nc6 {[%clk 00:12:04]} {[%emt
00:00:03]} 2. c4 {[%clk 00:12:04]} {[%emt 00:00:02]} e6 {[%clk 00:12:01]}
{[%emt 00:00:07]} 3. d4 {[%clk 00:12:03]} {[%emt 00:00:03]} d5 {[%clk
00:11:54]} {[%emt 00:00:10]} 4. Nc3 {[%clk 00:12:03]} {[%emt 00:00:02]} Bb4
{[%clk 00:11:42]} {[%emt 00:00:16]} 5. e3 {[%clk 00:11:58]} {[%emt 00:00:08]}
Bxc3+ {[%clk 00:11:38]} {[%emt 00:00:08]} 6. bxc3 {[%clk 00:11:59]} {[%emt
00:00:01]} Nf6 {[%clk 00:11:30]} {[%emt 00:00:10]} 7. cxd5 {[%clk 00:11:55]}
{[%emt 00:00:08]} Nxd5 {[%clk 00:11:30]} {[%emt 00:00:03]} 8. c4 {[%clk
00:11:53]} {[%emt 00:00:06]} Nf6 {[%clk 00:11:20]} {[%emt 00:00:12]} 9. Be2
{[%clk 00:11:43]} {[%emt 00:00:13]} O-O {[%clk 00:11:20]} {[%emt 00:00:03]} 10.
O-O {[%clk 00:11:44]} {[%emt 00:00:02]} h6 {[%clk 00:10:57]} {[%emt 00:00:26]}
11. Bb2 {[%clk 00:11:37]} {[%emt 00:00:09]} b6 {[%clk 00:10:33]} {[%emt
00:00:28]} 12. Qb3 {[%clk 00:11:16]} {[%emt 00:00:24]} Bb7 {[%clk 00:10:32]}
{[%emt 00:00:05]} 13. Rad1 {[%clk 00:11:01]} {[%emt 00:00:17]} Na5 {[%clk
00:10:29]} {[%emt 00:00:06]} 14. Qc2 {[%clk 00:11:00]} {[%emt 00:00:04]} Qe7
{[%clk 00:09:48]} {[%emt 00:00:44]} 15. a3 {[%clk 00:10:30]} {[%emt 00:00:34]}
Rfd8 {[%clk 00:09:45]} {[%emt 00:00:05]} 16. Bc3 {[%clk 00:10:08]} {[%emt
00:00:25]} Nc6 {[%clk 00:09:30]} {[%emt 00:00:18]} 17. d5 {[%clk 00:09:27]}
{[%emt 00:00:44]} exd5 {[%clk 00:09:27]} {[%emt 00:00:06]} 18. Bxf6 {[%clk
00:09:28]} Qxf6 {[%emt 00:00:39]} 19. cxd5 {[%clk 00:09:26]} {[%emt 00:00:03]}
Ne7 {[%clk 00:08:53]} {[%emt 00:00:03]} 20. e4 {[%clk 00:08:42]} {[%emt
00:00:47]} c6 {[%clk 00:08:37]} {[%emt 00:00:19]} 21. e5 {[%clk 00:08:39]}
{[%emt 00:00:06]} Qf5 {[%clk 00:07:25]} {[%emt 00:01:15]} 22. Bd3 {[%clk
00:08:40]} {[%emt 00:00:02]} Qf4 {[%clk 00:07:20]} {[%emt 00:00:09]} 23. d6
{[%clk 00:08:27]} {[%emt 00:00:16]} Ng6 {[%clk 00:07:21]} {[%emt 00:00:02]} 24.
Bxg6 {[%clk 00:08:23]} {[%emt 00:00:06]} fxg6 {[%clk 00:07:18]} {[%emt
00:00:06]} 25. Qxg6 {[%clk 00:08:25]} {[%emt 00:00:01]} c5 {[%clk 00:07:06]}
{[%emt 00:00:16]} 26. Qg3 {[%clk 00:08:01]} {[%emt 00:00:26]} Qf7 {[%clk
00:06:06]} {[%emt 00:01:03]} 27. Rfe1 {[%clk 00:07:33]} {[%emt 00:00:31]} Bd5
{[%clk 00:05:38]} {[%emt 00:00:31]} 28. Nh4 {[%clk 00:06:36]} {[%emt 00:01:00]}
g5 {[%clk 00:05:09]} {[%emt 00:00:32]} 29. Ng6 {[%clk 00:06:14]} {[%emt
00:00:25]} Bb3 {[%clk 00:03:12]} {[%emt 00:02:00]} 30. Ne7+ {[%clk 00:06:14]}
{[%emt 00:00:03]} Kg7 {[%clk 00:03:13]} {[%emt 00:00:02]} 31. Rd3 {[%clk
00:06:05]} {[%emt 00:00:13]} c4 {[%clk 00:02:48]} {[%emt 00:00:28]} 32. Rf3
{[%clk 00:06:06]} Qe6 {[%clk 00:02:32]} {[%emt 00:00:18]} 33. Rf6 {[%clk
00:06:06]} {[%emt 00:00:03]} Qxf6 {[%clk 00:01:56]} {[%emt 00:00:40]} 34. exf6+
{[%clk 00:06:08]} {[%emt 00:00:01]} Kxf6 {[%clk 00:01:58]} {[%emt 00:00:02]} 35.
Qe5+ {[%clk 00:06:10]} Kf7 {[%clk 00:01:55]} {[%emt 00:00:06]} 36. Qe6+ {[%clk
00:06:01]} {[%emt 00:00:11]} 1-0